[Event "Titled Tuesday Blitz March 21 Late 2023"]
[White "The_Sherman_Variation"]
[Black "Maatman, Nick"]
[BlackFideId "1040391"]
[WhiteElo "2544"]
[BlackElo "2705"]
[Result "1-0"]
[Round "06"]
[TimeControl "180+2"]
[Date "2023.03.21"]
[WhiteClock "0:00:17"]
[BlackClock "0:00:02"]

1. b3 {[%clk 0:03:00]}  e5 {[%clk 0:02:55]} 2. Bb2 {[%clk 0:02:58]}  Nc6 {[%clk 0:02:55]} 3. e3 {[%clk 0:02:55]}  d5 {[%clk 0:02:55]} 4. Be2 {[%clk 0:02:51]}  Bd6 {[%clk 0:02:54]} 5. Nf3 {[%clk 0:02:50]}  Nf6 {[%clk 0:02:53]} 6. d4 {[%clk 0:02:49]}  exd4 {[%clk 0:02:49]} 7. Nxd4 {[%clk 0:02:47]}  O-O {[%clk 0:02:49]} 8. Nxc6 {[%clk 0:02:42]}  bxc6 {[%clk 0:02:50]} 9. Bf3 {[%clk 0:02:41]}  a5 {[%clk 0:02:49]} 10. a4 {[%clk 0:02:41]}  Ba6 {[%clk 0:02:47]} 11. Be2 {[%clk 0:02:36]}  Bb4+ {[%clk 0:02:28]} 12. c3 {[%clk 0:02:32]}  Bd6 {[%clk 0:02:27]} 13. O-O {[%clk 0:02:32]}  Bxe2 {[%clk 0:02:24]} 14. Qxe2 {[%clk 0:02:32]}  Rb8 {[%clk 0:02:24]} 15. Nd2 {[%clk 0:02:31]}  Qe7 {[%clk 0:02:23]} 16. c4 {[%clk 0:02:26]}  Ne4 {[%clk 0:02:18]} 17. Qg4 {[%clk 0:02:02]}  f5 {[%clk 0:02:10]} 18. Qe2 {[%clk 0:01:59]}  Kh8 {[%clk 0:01:42]} 19. Rab1 {[%clk 0:01:46]}  Rfe8 {[%clk 0:01:29]} 20. Ba1 {[%clk 0:01:41]}  f4 {[%clk 0:01:23]} 21. Nxe4 {[%clk 0:01:38]}  Qxe4 {[%clk 0:01:22]} 22. Qg4 {[%clk 0:01:34]}  Re7 {[%clk 0:01:20]} 23. exf4 {[%clk 0:01:28]}  Bxf4 {[%clk 0:01:17]} 24. h3 {[%clk 0:01:28]}  Bd2 {[%clk 0:01:13]} 25. cxd5 {[%clk 0:01:15]}  cxd5 {[%clk 0:01:09]} 26. Qg3 {[%clk 0:01:09]}  Bb4 {[%clk 0:01:05]} 27. Rbd1 {[%clk 0:01:04]}  Bd6 {[%clk 0:01:02]} 28. Qg5 {[%clk 0:01:01]}  c6 {[%clk 0:00:56]} 29. Rd4 {[%clk 0:00:47]}  Qe2 {[%clk 0:00:48]} 30. Rh4 {[%clk 0:00:42]}  Rbe8 {[%clk 0:00:24]} 31. g3 {[%clk 0:00:33]}  Rf7 {[%clk 0:00:19]} 32. Qg6 {[%clk 0:00:24]}  Kg8 {[%clk 0:00:04]} 33. Rxh7 {[%clk 0:00:20]}  Bf8 {[%clk 0:00:02]} 34. g4 {[%clk 0:00:17]} 1-0


[Site "https://www.chess.com"]

[Event "Titled Tuesday Blitz March 21 Late 2023"]
[White "Martinez Reyes, Pedro Ramon"]
[Black "Janaszak, Dawid"]
[WhiteFideId "3901807"]
[BlackFideId "1119206"]
[WhiteElo "2340"]
[BlackElo "2220"]
[Result "0-1"]
[Round "06"]
[TimeControl "180+2"]
[Date "2023.03.21"]
[WhiteClock "0:00:19"]
[BlackClock "0:00:25"]

1. e4 {[%clk 0:03:00]}  c5 {[%clk 0:02:59]} 2. Nf3 {[%clk 0:03:00]}  Nc6 {[%clk 0:02:59]} 3. d4 {[%clk 0:03:01]}  cxd4 {[%clk 0:03:00]} 4. Nxd4 {[%clk 0:03:01]}  e5 {[%clk 0:02:59]} 5. Nb5 {[%clk 0:03:01]}  d6 {[%clk 0:03:00]} 6. c4 {[%clk 0:03:01]}  g6 {[%clk 0:03:00]} 7. N5c3 {[%clk 0:02:58]}  Nf6 {[%clk 0:02:58]} 8. Be2 {[%clk 0:02:57]}  Bg7 {[%clk 0:02:56]} 9. Be3 {[%clk 0:02:56]}  O-O {[%clk 0:02:55]} 10. O-O {[%clk 0:02:56]}  Be6 {[%clk 0:02:51]} 11. Nd2 {[%clk 0:02:55]}  Rc8 {[%clk 0:02:44]} 12. Rc1 {[%clk 0:02:55]}  a6 {[%clk 0:02:35]} 13. b3 {[%clk 0:02:55]}  Nd4 {[%clk 0:02:32]} 14. Bd3 {[%clk 0:02:54]}  Ng4 {[%clk 0:02:26]} 15. Bxd4 {[%clk 0:02:46]}  exd4 {[%clk 0:02:25]} 16. Nd5 {[%clk 0:02:47]}  Ne5 {[%clk 0:02:17]} 17. Bb1 {[%clk 0:02:33]}  Bg4 {[%clk 0:02:08]} 18. f3 {[%clk 0:02:31]}  Be6 {[%clk 0:02:08]} 19. f4 {[%clk 0:02:20]}  Nc6 {[%clk 0:01:47]} 20. Nf3 {[%clk 0:02:11]}  Bg4 {[%clk 0:01:27]} 21. Kh1 {[%clk 0:02:06]}  Ne7 {[%clk 0:01:23]} 22. f5 {[%clk 0:01:53]}  Nxd5 {[%clk 0:01:18]} 23. exd5 {[%clk 0:01:53]}  b5 {[%clk 0:01:03]} 24. h3 {[%clk 0:01:53]}  Bxf3 {[%clk 0:00:59]} 25. Qxf3 {[%clk 0:01:54]}  bxc4 {[%clk 0:01:00]} 26. Rxc4 {[%clk 0:01:53]}  Rxc4 {[%clk 0:00:59]} 27. bxc4 {[%clk 0:01:54]}  Be5 {[%clk 0:00:48]} 28. Bd3 {[%clk 0:01:45]}  Qg5 {[%clk 0:00:45]} 29. Rb1 {[%clk 0:01:32]}  a5 {[%clk 0:00:40]} 30. Rf1 {[%clk 0:01:22]}  a4 {[%clk 0:00:40]} 31. Re1 {[%clk 0:01:13]}  a3 {[%clk 0:00:36]} 32. Rf1 {[%clk 0:01:13]}  Qe3 {[%clk 0:00:35]} 33. Rb1 {[%clk 0:01:05]}  Qd2 {[%clk 0:00:32]} 34. Qe2 {[%clk 0:00:59]}  Qf4 {[%clk 0:00:31]} 35. g4 {[%clk 0:00:53]}  Qg3 {[%clk 0:00:29]} 36. Be4 {[%clk 0:00:43]}  Qxh3+ {[%clk 0:00:28]} 37. Kg1 {[%clk 0:00:44]}  Bf4 {[%clk 0:00:26]} 38. Bg2 {[%clk 0:00:42]}  Be3+ {[%clk 0:00:26]} 39. Kf1 {[%clk 0:00:42]}  Qh2 {[%clk 0:00:26]} 40. Qf2 {[%clk 0:00:17]}  Bxf2 {[%clk 0:00:26]} 41. Kxf2 {[%clk 0:00:18]}  Qf4+ {[%clk 0:00:25]} 42. Kg1 {[%clk 0:00:19]}  Qe3+ {[%clk 0:00:25]} 43. Kh1 {[%clk 0:00:19]}  d3 {[%clk 0:00:25]} 44. fxg6 {[%clk 0:00:19]} 0-1


[Site "https://www.chess.com"]

[Event "Titled Tuesday Blitz March 21 Late 2023"]
[White "Skvortsov, Andrei"]
[Black "Remolar Gallen, Jose"]
[WhiteFideId "24108600"]
[BlackFideId "2215187"]
[WhiteElo "2259"]
[BlackElo "2223"]
[Result "1-0"]
[Round "06"]
[TimeControl "180+2"]
[Date "2023.03.21"]
[WhiteClock "0:00:15"]
[BlackClock "0:00:03"]

1. e4 {[%clk 0:03:00]}  c5 {[%clk 0:02:59]} 2. d4 {[%clk 0:02:59]}  cxd4 {[%clk 0:02:59]} 3. Qxd4 {[%clk 0:03:00]}  Nc6 {[%clk 0:02:58]} 4. Qd3 {[%clk 0:03:01]}  d6 {[%clk 0:02:48]} 5. Nc3 {[%clk 0:03:00]}  Nf6 {[%clk 0:02:39]} 6. Nf3 {[%clk 0:03:00]}  Bg4 {[%clk 0:02:35]} 7. h3 {[%clk 0:02:58]}  Bh5 {[%clk 0:02:34]} 8. Be2 {[%clk 0:02:52]}  e6 {[%clk 0:02:33]} 9. Bf4 {[%clk 0:02:51]}  Be7 {[%clk 0:02:30]} 10. O-O-O {[%clk 0:02:50]}  Qa5 {[%clk 0:02:16]} 11. Qb5 {[%clk 0:02:41]}  Qc7 {[%clk 0:01:45]} 12. e5 {[%clk 0:02:27]}  a6 {[%clk 0:01:32]} 13. exd6 {[%clk 0:02:16]}  axb5 {[%clk 0:01:30]} 14. dxc7 {[%clk 0:02:16]}  b4 {[%clk 0:01:27]} 15. Nb5 {[%clk 0:02:11]}  O-O {[%clk 0:01:22]} 16. Kb1 {[%clk 0:02:02]}  Nd5 {[%clk 0:01:21]} 17. Bh2 {[%clk 0:01:52]}  Ra5 {[%clk 0:00:58]} 18. g4 {[%clk 0:01:39]}  Bg6 {[%clk 0:00:57]} 19. Nfd4 {[%clk 0:01:38]}  Rfa8 {[%clk 0:00:49]} 20. Bc4 {[%clk 0:01:26]}  Bf6 {[%clk 0:00:38]} 21. Bb3 {[%clk 0:00:42]}  Nxd4 {[%clk 0:00:23]} 22. Nxd4 {[%clk 0:00:42]}  Rc5 {[%clk 0:00:20]} 23. f4 {[%clk 0:00:41]}  Nxc7 {[%clk 0:00:12]} 24. f5 {[%clk 0:00:41]}  exf5 {[%clk 0:00:11]} 25. Bd6 {[%clk 0:00:42]}  Bxd4 {[%clk 0:00:04]} 26. Rxd4 {[%clk 0:00:40]}  Rc6 {[%clk 0:00:04]} 27. gxf5 {[%clk 0:00:30]}  Bxf5 {[%clk 0:00:04]} 28. Bxb4 {[%clk 0:00:16]}  Ne6 {[%clk 0:00:04]} 29. Rh4 {[%clk 0:00:15]}  Rac8 {[%clk 0:00:04]} 30. Bc3 {[%clk 0:00:15]}  g5 {[%clk 0:00:03]} 31. Ra4 {[%clk 0:00:15]}  b5 {[%clk 0:00:02]} 32. Ra5 {[%clk 0:00:15]}  b4 {[%clk 0:00:02]} 33. Rxf5 {[%clk 0:00:16]}  bxc3 {[%clk 0:00:03]} 34. bxc3 {[%clk 0:00:16]}  Rxc3 {[%clk 0:00:03]} 35. Bxe6 {[%clk 0:00:13]}  fxe6 {[%clk 0:00:04]} 36. Rxg5+ {[%clk 0:00:14]}  Kf7 {[%clk 0:00:04]} 37. Rg2 {[%clk 0:00:14]}  Rb8+ {[%clk 0:00:04]} 38. Kc1 {[%clk 0:00:15]}  Ra3 {[%clk 0:00:04]} 39. c4 {[%clk 0:00:13]}  Rc3+ {[%clk 0:00:01]} 40. Rc2 {[%clk 0:00:14]}  Rf3 {[%clk 0:00:01]} 41. c5 {[%clk 0:00:13]}  Rc8 {[%clk 0:00:01]} 42. c6 {[%clk 0:00:14]}  Ke7 {[%clk 0:00:02]} 43. Rd1 {[%clk 0:00:14]}  Rf5 {[%clk 0:00:02]} 44. Rd7+ {[%clk 0:00:14]}  Ke8 {[%clk 0:00:02]} 45. Rxh7 {[%clk 0:00:14]}  Ra5 {[%clk 0:00:03]} 46. Rh8+ {[%clk 0:00:15]} 1-0


[Site "https://www.chess.com"]

[Event "Titled Tuesday Blitz March 21 Late 2023"]
[White "Domingo Nunez, Ruben"]
[Black "Shapiro, Viktor"]
[WhiteFideId "22245570"]
[BlackFideId "4175700"]
[WhiteElo "2404"]
[BlackElo "2152"]
[Result "1-0"]
[Round "06"]
[TimeControl "180+2"]
[Date "2023.03.21"]
[WhiteClock "0:01:50"]
[BlackClock "0:01:17"]

1. b3 {[%clk 0:03:00]}  Nf6 {[%clk 0:02:59]} 2. Bb2 {[%clk 0:03:00]}  g6 {[%clk 0:02:58]} 3. Nf3 {[%clk 0:03:01]}  Bg7 {[%clk 0:02:59]} 4. g3 {[%clk 0:03:01]}  O-O {[%clk 0:02:59]} 5. Bg2 {[%clk 0:03:02]}  c5 {[%clk 0:02:58]} 6. c4 {[%clk 0:03:02]}  Nc6 {[%clk 0:02:58]} 7. O-O {[%clk 0:03:02]}  d6 {[%clk 0:02:58]} 8. d4 {[%clk 0:03:02]}  cxd4 {[%clk 0:02:56]} 9. Nxd4 {[%clk 0:03:03]}  Bd7 {[%clk 0:02:57]} 10. Nc3 {[%clk 0:03:03]}  a6 {[%clk 0:02:57]} 11. Rc1 {[%clk 0:03:03]}  Rc8 {[%clk 0:02:58]} 12. Nc2 {[%clk 0:03:02]}  Qa5 {[%clk 0:02:55]} 13. Ne3 {[%clk 0:03:02]}  b5 {[%clk 0:02:44]} 14. a4 {[%clk 0:02:39]}  bxa4 {[%clk 0:02:41]} 15. Nxa4 {[%clk 0:02:38]}  Rb8 {[%clk 0:02:32]} 16. Bc3 {[%clk 0:02:27]}  Qc7 {[%clk 0:02:29]} 17. Nd5 {[%clk 0:02:02]}  Qd8 {[%clk 0:02:12]} 18. Nxf6+ {[%clk 0:01:58]}  exf6 {[%clk 0:02:05]} 19. Qxd6 {[%clk 0:01:57]}  Rxb3 {[%clk 0:02:05]} 20. Bxc6 {[%clk 0:01:54]}  Bxc6 {[%clk 0:01:58]} 21. Qxc6 {[%clk 0:01:55]}  Qe8 {[%clk 0:01:49]} 22. Qxe8 {[%clk 0:01:50]}  Rxe8 {[%clk 0:01:50]} 23. e3 {[%clk 0:01:50]}  Ra3 {[%clk 0:01:36]} 24. Nb6 {[%clk 0:01:49]}  Rb3 {[%clk 0:01:29]} 25. c5 {[%clk 0:01:50]}  f5 {[%clk 0:01:24]} 26. Bxg7 {[%clk 0:01:48]}  Kxg7 {[%clk 0:01:24]} 27. Rb1 {[%clk 0:01:49]}  Rc3 {[%clk 0:01:17]} 28. Rfc1 {[%clk 0:01:49]}  Rxc1+ {[%clk 0:01:17]} 29. Rxc1 {[%clk 0:01:50]} 1-0


[Site "https://www.chess.com"]

[Event "Titled Tuesday Blitz March 21 Late 2023"]
[White "Spata, German"]
[Black "cryptoguru02"]
[WhiteFideId "113026"]
[WhiteElo "2238"]
[BlackElo "2503"]
[Result "1/2-1/2"]
[Round "06"]
[TimeControl "180+2"]
[Date "2023.03.21"]
[WhiteClock "0:00:13"]
[BlackClock "0:00:09"]

1. Nf3 {[%clk 0:02:48]}  g6 {[%clk 0:02:59]} 2. g3 {[%clk 0:02:48]}  Bg7 {[%clk 0:03:00]} 3. Bg2 {[%clk 0:02:49]}  d5 {[%clk 0:03:00]} 4. d4 {[%clk 0:02:47]}  Nf6 {[%clk 0:02:54]} 5. O-O {[%clk 0:02:48]}  O-O {[%clk 0:02:55]} 6. c4 {[%clk 0:02:48]}  c6 {[%clk 0:02:46]} 7. b3 {[%clk 0:02:48]}  Bf5 {[%clk 0:02:35]} 8. Bb2 {[%clk 0:02:45]}  a5 {[%clk 0:02:31]} 9. Nc3 {[%clk 0:02:45]}  Ne4 {[%clk 0:02:29]} 10. e3 {[%clk 0:02:42]}  Nxc3 {[%clk 0:02:29]} 11. Bxc3 {[%clk 0:02:41]}  Be4 {[%clk 0:02:29]} 12. Ne1 {[%clk 0:02:34]}  Bxg2 {[%clk 0:02:29]} 13. Kxg2 {[%clk 0:02:32]}  a4 {[%clk 0:02:27]} 14. Nd3 {[%clk 0:02:29]}  Nd7 {[%clk 0:02:17]} 15. cxd5 {[%clk 0:02:24]}  cxd5 {[%clk 0:02:17]} 16. bxa4 {[%clk 0:02:22]}  e6 {[%clk 0:02:02]} 17. Qb3 {[%clk 0:02:18]}  Qc7 {[%clk 0:01:48]} 18. Rfc1 {[%clk 0:02:09]}  Rfc8 {[%clk 0:01:47]} 19. Bd2 {[%clk 0:01:58]}  Qb8 {[%clk 0:01:41]} 20. Rab1 {[%clk 0:01:51]}  Rxc1 {[%clk 0:01:33]} 21. Bxc1 {[%clk 0:01:47]}  b6 {[%clk 0:01:31]} 22. Qb5 {[%clk 0:01:24]}  Qa7 {[%clk 0:01:29]} 23. a5 {[%clk 0:01:08]}  bxa5 {[%clk 0:01:25]} 24. Qb7 {[%clk 0:01:08]}  Bf8 {[%clk 0:01:17]} 25. a4 {[%clk 0:01:00]}  Qa6 {[%clk 0:00:54]} 26. Nf4 {[%clk 0:00:40]}  Ra7 {[%clk 0:00:47]} 27. Qxa6 {[%clk 0:00:39]}  Rxa6 {[%clk 0:00:47]} 28. Bd2 {[%clk 0:00:27]}  Nb6 {[%clk 0:00:42]} 29. Rb5 {[%clk 0:00:25]}  Bb4 {[%clk 0:00:19]} 30. Bxb4 {[%clk 0:00:22]}  axb4 {[%clk 0:00:20]} 31. Rxb4 {[%clk 0:00:17]}  Nxa4 {[%clk 0:00:20]} 32. Rb7 {[%clk 0:00:16]}  Nc3 {[%clk 0:00:16]} 33. Nd3 {[%clk 0:00:16]}  Ra8 {[%clk 0:00:15]} 34. Ne5 {[%clk 0:00:16]}  Rf8 {[%clk 0:00:15]} 35. Nd7 {[%clk 0:00:17]}  Rd8 {[%clk 0:00:14]} 36. Ne5 {[%clk 0:00:17]}  Rf8 {[%clk 0:00:14]} 37. Rc7 {[%clk 0:00:17]}  Ne4 {[%clk 0:00:14]} 38. f3 {[%clk 0:00:16]}  Nd6 {[%clk 0:00:14]} 39. g4 {[%clk 0:00:16]}  Ne8 {[%clk 0:00:12]} 40. Rd7 {[%clk 0:00:14]}  Nf6 {[%clk 0:00:12]} 41. Rc7 {[%clk 0:00:13]}  Kg7 {[%clk 0:00:13]} 42. Kg3 {[%clk 0:00:12]}  h5 {[%clk 0:00:12]} 43. h3 {[%clk 0:00:13]}  hxg4 {[%clk 0:00:12]} 44. hxg4 {[%clk 0:00:13]}  g5 {[%clk 0:00:12]} 45. Rb7 {[%clk 0:00:12]}  Ng8 {[%clk 0:00:11]} 46. Nd7 {[%clk 0:00:12]}  Rd8 {[%clk 0:00:11]} 47. Nc5 {[%clk 0:00:12]}  Kg6 {[%clk 0:00:09]} 48. Nd7 {[%clk 0:00:10]}  Kg7 {[%clk 0:00:08]} 49. Ne5 {[%clk 0:00:10]}  Rf8 {[%clk 0:00:08]} 50. Ra7 {[%clk 0:00:10]}  Nf6 {[%clk 0:00:09]} 51. Nc6 {[%clk 0:00:10]}  Rc8 {[%clk 0:00:08]} 52. Ne5 {[%clk 0:00:09]}  Rf8 {[%clk 0:00:08]} 53. Kf2 {[%clk 0:00:10]}  Ng8 {[%clk 0:00:07]} 54. Ke2 {[%clk 0:00:10]}  Nf6 {[%clk 0:00:08]} 55. Kd3 {[%clk 0:00:11]}  Ng8 {[%clk 0:00:07]} 56. Nd7 {[%clk 0:00:11]}  Rd8 {[%clk 0:00:07]} 57. Nc5 {[%clk 0:00:11]}  Kg6 {[%clk 0:00:07]} 58. Rb7 {[%clk 0:00:11]}  Nf6 {[%clk 0:00:07]} 59. Ra7 {[%clk 0:00:11]}  Ng8 {[%clk 0:00:06]} 60. Nd7 {[%clk 0:00:11]}  Kg7 {[%clk 0:00:04]} 61. Ne5 {[%clk 0:00:11]}  Rf8 {[%clk 0:00:05]} 62. Ra6 {[%clk 0:00:11]}  Nf6 {[%clk 0:00:05]} 63. Ra4 {[%clk 0:00:11]}  Rd8 {[%clk 0:00:05]} 64. Ra2 {[%clk 0:00:11]}  Nd7 {[%clk 0:00:05]} 65. Nc6 {[%clk 0:00:10]}  Rc8 {[%clk 0:00:05]} 66. Ne5 {[%clk 0:00:10]}  Nxe5+ {[%clk 0:00:04]} 67. dxe5 {[%clk 0:00:11]}  Kg6 {[%clk 0:00:05]} 68. Kd4 {[%clk 0:00:11]}  Rc4+ {[%clk 0:00:05]} 69. Kd3 {[%clk 0:00:11]}  Rc7 {[%clk 0:00:06]} 70. Ra8 {[%clk 0:00:11]}  Rb7 {[%clk 0:00:06]} 71. Rg8+ {[%clk 0:00:11]}  Kh6 {[%clk 0:00:07]} 72. Rf8 {[%clk 0:00:11]}  Kg7 {[%clk 0:00:07]} 73. Rc8 {[%clk 0:00:11]}  Rb3+ {[%clk 0:00:07]} 74. Rc3 {[%clk 0:00:11]}  Rb7 {[%clk 0:00:08]} 75. Rc2 {[%clk 0:00:11]}  Rb3+ {[%clk 0:00:08]} 76. Rc3 {[%clk 0:00:12]}  Rb7 {[%clk 0:00:08]} 77. Rc2 {[%clk 0:00:12]}  Rb3+ {[%clk 0:00:08]} 78. Ke2 {[%clk 0:00:13]}  Rb7 {[%clk 0:00:08]} 79. Kf2 {[%clk 0:00:13]}  Rb3 {[%clk 0:00:08]} 80. Rd2 {[%clk 0:00:13]}  Rc3 {[%clk 0:00:08]} 81. Rd4 {[%clk 0:00:13]}  Rc2+ {[%clk 0:00:09]} 82. Kg3 {[%clk 0:00:14]}  Re2 {[%clk 0:00:09]} 83. Rd3 {[%clk 0:00:13]}  Re1 {[%clk 0:00:08]} 84. Kf2 {[%clk 0:00:13]}  Ra1 {[%clk 0:00:09]} 85. Kg3 {[%clk 0:00:14]}  Ra2 {[%clk 0:00:09]} 86. Rc3 {[%clk 0:00:13]}  Re2 {[%clk 0:00:09]} 87. Rd3 {[%clk 0:00:12]}  Ra2 {[%clk 0:00:09]} 88. Rc3 {[%clk 0:00:13]}  Re2 {[%clk 0:00:09]} 89. Rd3 {[%clk 0:00:13]} 1/2-1/2


[Site "https://www.chess.com"]

[Event "Titled Tuesday Blitz March 21 Late 2023"]
[White "Popov, Mikhail"]
[Black "Kubatko, Ivan"]
[WhiteFideId "4146182"]
[BlackFideId "24111473"]
[WhiteElo "2270"]
[BlackElo "2285"]
[Result "1-0"]
[Round "06"]
[TimeControl "180+2"]
[Date "2023.03.21"]
[WhiteClock "0:00:08"]
[BlackClock "0:00:02"]

1. d4 {[%clk 0:03:00]}  d5 {[%clk 0:02:59]} 2. c4 {[%clk 0:02:57]}  e6 {[%clk 0:03:00]} 3. Nc3 {[%clk 0:02:56]}  c5 {[%clk 0:03:00]} 4. cxd5 {[%clk 0:02:53]}  cxd4 {[%clk 0:03:00]} 5. Qxd4 {[%clk 0:02:50]}  Nc6 {[%clk 0:03:00]} 6. Qd1 {[%clk 0:02:48]}  exd5 {[%clk 0:03:00]} 7. Qxd5 {[%clk 0:02:47]}  Be6 {[%clk 0:03:00]} 8. Qxd8+ {[%clk 0:02:42]}  Rxd8 {[%clk 0:03:01]} 9. e3 {[%clk 0:02:25]}  a6 {[%clk 0:03:01]} 10. a3 {[%clk 0:02:01]}  g6 {[%clk 0:03:00]} 11. Nf3 {[%clk 0:01:56]}  Bg7 {[%clk 0:02:59]} 12. Be2 {[%clk 0:01:56]}  Na5 {[%clk 0:02:43]} 13. O-O {[%clk 0:01:49]}  Nb3 {[%clk 0:02:39]} 14. Rb1 {[%clk 0:01:48]}  Nf6 {[%clk 0:02:20]} 15. Rd1 {[%clk 0:01:41]}  O-O {[%clk 0:02:12]} 16. Nd4 {[%clk 0:01:38]}  Nxd4 {[%clk 0:01:53]} 17. exd4 {[%clk 0:01:37]}  Bb3 {[%clk 0:01:30]} 18. Re1 {[%clk 0:01:37]}  Rxd4 {[%clk 0:01:23]} 19. Be3 {[%clk 0:01:37]}  Rd7 {[%clk 0:01:15]} 20. Bf3 {[%clk 0:01:29]}  Rfd8 {[%clk 0:01:11]} 21. Rbc1 {[%clk 0:01:26]}  Nd5 {[%clk 0:00:57]} 22. Nxd5 {[%clk 0:01:15]}  Bxd5 {[%clk 0:00:58]} 23. Bb6 {[%clk 0:00:54]}  Ra8 {[%clk 0:00:20]} 24. Rcd1 {[%clk 0:00:50]}  Be6 {[%clk 0:00:19]} 25. Rxd7 {[%clk 0:00:40]}  Bxd7 {[%clk 0:00:20]} 26. Re7 {[%clk 0:00:34]}  Bc6 {[%clk 0:00:17]} 27. Bxc6 {[%clk 0:00:32]}  bxc6 {[%clk 0:00:18]} 28. b4 {[%clk 0:00:31]}  Rb8 {[%clk 0:00:11]} 29. Bc7 {[%clk 0:00:16]}  Rc8 {[%clk 0:00:07]} 30. Rd7 {[%clk 0:00:16]}  Bb2 {[%clk 0:00:05]} 31. a4 {[%clk 0:00:15]}  Ba3 {[%clk 0:00:05]} 32. Bd6 {[%clk 0:00:15]}  a5 {[%clk 0:00:02]} 33. bxa5 {[%clk 0:00:12]}  c5 {[%clk 0:00:01]} 34. a6 {[%clk 0:00:08]}  Ra8 {[%clk 0:00:01]} 35. a7 {[%clk 0:00:08]}  Bb4 {[%clk 0:00:01]} 36. Rb7 {[%clk 0:00:08]}  Kg7 {[%clk 0:00:01]} 37. Kf1 {[%clk 0:00:07]}  Kf6 {[%clk 0:00:02]} 38. Bb8 {[%clk 0:00:06]}  Ke6 {[%clk 0:00:02]} 39. Ke2 {[%clk 0:00:06]}  Kd5 {[%clk 0:00:02]} 40. Kd3 {[%clk 0:00:05]}  c4+ {[%clk 0:00:02]} 41. Kc2 {[%clk 0:00:05]}  Bc5 {[%clk 0:00:02]} 42. Rxf7 {[%clk 0:00:05]}  h6 {[%clk 0:00:02]} 43. f3 {[%clk 0:00:05]}  g5 {[%clk 0:00:02]} 44. g4 {[%clk 0:00:05]}  Kc6 {[%clk 0:00:01]} 45. Rf6+ {[%clk 0:00:05]}  Kd5 {[%clk 0:00:01]} 46. Rxh6 {[%clk 0:00:05]}  Bxa7 {[%clk 0:00:02]} 47. Ra6 {[%clk 0:00:02]}  Rxb8 {[%clk 0:00:02]} 48. Rxa7 {[%clk 0:00:02]}  Kd4 {[%clk 0:00:02]} 49. Rd7+ {[%clk 0:00:02]}  Ke3 {[%clk 0:00:02]} 50. Rc7 {[%clk 0:00:03]}  Kxf3 {[%clk 0:00:03]} 51. Rxc4 {[%clk 0:00:04]}  Re8 {[%clk 0:00:02]} 52. a5 {[%clk 0:00:04]}  Re2+ {[%clk 0:00:02]} 53. Kb3 {[%clk 0:00:05]}  Rxh2 {[%clk 0:00:03]} 54. a6 {[%clk 0:00:06]}  Rh8 {[%clk 0:00:03]} 55. a7 {[%clk 0:00:05]}  Ra8 {[%clk 0:00:03]} 56. Ra4 {[%clk 0:00:06]}  Ke3 {[%clk 0:00:02]} 57. Kc4 {[%clk 0:00:06]}  Kf4 {[%clk 0:00:01]} 58. Kd5+ {[%clk 0:00:06]}  Kf3 {[%clk 0:00:01]} 59. Kc6 {[%clk 0:00:07]}  Kg3 {[%clk 0:00:01]} 60. Kb7 {[%clk 0:00:07]}  Rf8 {[%clk 0:00:02]} 61. a8=Q {[%clk 0:00:07]}  Rxa8 {[%clk 0:00:02]} 62. Kxa8 {[%clk 0:00:08]} 1-0


[Site "https://www.chess.com"]

[Event "Titled Tuesday Blitz March 21 Late 2023"]
[White "O`Gorman, Tom"]
[Black "drdaro"]
[WhiteFideId "2508249"]
[WhiteElo "2271"]
[BlackElo "2404"]
[Result "1-0"]
[Round "06"]
[TimeControl "180+2"]
[Date "2023.03.21"]
[WhiteClock "0:01:33"]
[BlackClock "0:01:02"]

1. e4 {[%clk 0:03:00]}  g6 {[%clk 0:02:56]} 2. d4 {[%clk 0:02:58]}  Nf6 {[%clk 0:02:57]} 3. e5 {[%clk 0:02:58]}  Nh5 {[%clk 0:02:57]} 4. Nf3 {[%clk 0:02:54]}  d6 {[%clk 0:02:57]} 5. Bc4 {[%clk 0:02:52]}  d5 {[%clk 0:02:52]} 6. Bd3 {[%clk 0:02:50]}  Ng7 {[%clk 0:02:53]} 7. O-O {[%clk 0:02:48]}  Bf5 {[%clk 0:02:53]} 8. c4 {[%clk 0:02:47]}  Bxd3 {[%clk 0:02:52]} 9. Qxd3 {[%clk 0:02:48]}  dxc4 {[%clk 0:02:52]} 10. Qxc4 {[%clk 0:02:49]}  Nd7 {[%clk 0:02:52]} 11. Nc3 {[%clk 0:02:46]}  c6 {[%clk 0:02:50]} 12. Qb3 {[%clk 0:02:41]}  Nb6 {[%clk 0:02:48]} 13. Rd1 {[%clk 0:02:37]}  e6 {[%clk 0:02:48]} 14. Bg5 {[%clk 0:02:36]}  Be7 {[%clk 0:02:46]} 15. Ne4 {[%clk 0:02:36]}  O-O {[%clk 0:02:45]} 16. Bxe7 {[%clk 0:02:33]}  Qxe7 {[%clk 0:02:45]} 17. Nf6+ {[%clk 0:02:34]}  Kh8 {[%clk 0:02:46]} 18. Ng5 {[%clk 0:02:34]}  h5 {[%clk 0:02:16]} 19. Nge4 {[%clk 0:02:30]}  Ne8 {[%clk 0:02:08]} 20. Qe3 {[%clk 0:02:28]}  Kg7 {[%clk 0:01:49]} 21. Qg5 {[%clk 0:02:27]}  Rh8 {[%clk 0:01:46]} 22. Nxh5+ {[%clk 0:02:25]}  Kf8 {[%clk 0:01:46]} 23. Nhf6 {[%clk 0:02:21]}  Nxf6 {[%clk 0:01:43]} 24. exf6 {[%clk 0:02:16]}  Qc7 {[%clk 0:01:36]} 25. g3 {[%clk 0:02:09]}  Rh5 {[%clk 0:01:36]} 26. Qd2 {[%clk 0:02:05]}  Rd8 {[%clk 0:01:36]} 27. Rac1 {[%clk 0:02:03]}  Nd5 {[%clk 0:01:29]} 28. Rc5 {[%clk 0:02:01]}  Kg8 {[%clk 0:01:27]} 29. Rdc1 {[%clk 0:01:56]}  Rd7 {[%clk 0:01:25]} 30. b4 {[%clk 0:01:54]}  Qd8 {[%clk 0:01:25]} 31. b5 {[%clk 0:01:50]}  Nxf6 {[%clk 0:01:18]} 32. Nxf6+ {[%clk 0:01:50]}  Qxf6 {[%clk 0:01:19]} 33. Rxh5 {[%clk 0:01:46]}  gxh5 {[%clk 0:01:19]} 34. bxc6 {[%clk 0:01:45]}  bxc6 {[%clk 0:01:20]} 35. Qe2 {[%clk 0:01:43]}  Rxd4 {[%clk 0:01:05]} 36. Qxh5 {[%clk 0:01:40]}  Rd2 {[%clk 0:01:03]} 37. Qg4+ {[%clk 0:01:37]}  Kf8 {[%clk 0:01:02]} 38. Qb4+ {[%clk 0:01:33]} 1-0


[Site "https://www.chess.com"]

[Event "Titled Tuesday Blitz March 21 Late 2023"]
[White "aidenzhouu"]
[Black "Kakabayev, Mergen"]
[BlackFideId "14002990"]
[WhiteElo "2460"]
[BlackElo "2259"]
[Result "0-1"]
[Round "06"]
[TimeControl "180+2"]
[Date "2023.03.21"]
[WhiteClock "0:00:11"]
[BlackClock "0:01:59"]

1. d4 {[%clk 0:03:00]}  d5 {[%clk 0:02:59]} 2. c4 {[%clk 0:03:00]}  c6 {[%clk 0:02:59]} 3. Nf3 {[%clk 0:03:01]}  Nf6 {[%clk 0:02:59]} 4. e3 {[%clk 0:03:01]}  e6 {[%clk 0:02:59]} 5. b3 {[%clk 0:03:02]}  Nbd7 {[%clk 0:02:59]} 6. Bb2 {[%clk 0:03:02]}  Bd6 {[%clk 0:03:00]} 7. Bd3 {[%clk 0:03:02]}  O-O {[%clk 0:03:00]} 8. Nbd2 {[%clk 0:02:59]}  Qe7 {[%clk 0:03:00]} 9. O-O {[%clk 0:02:58]}  e5 {[%clk 0:03:00]} 10. e4 {[%clk 0:02:38]}  exd4 {[%clk 0:02:50]} 11. exd5 {[%clk 0:02:34]}  cxd5 {[%clk 0:02:45]} 12. Nxd4 {[%clk 0:02:26]}  Qe5 {[%clk 0:02:45]} 13. N2f3 {[%clk 0:02:23]}  Qh5 {[%clk 0:02:45]} 14. Nf5 {[%clk 0:02:08]}  dxc4 {[%clk 0:02:37]} 15. Nxd6 {[%clk 0:02:02]}  cxd3 {[%clk 0:02:35]} 16. Qxd3 {[%clk 0:02:03]}  Nc5 {[%clk 0:02:30]} 17. Qb5 {[%clk 0:01:40]}  Bg4 {[%clk 0:02:29]} 18. Bxf6 {[%clk 0:01:36]}  Bxf3 {[%clk 0:02:29]} 19. gxf3 {[%clk 0:01:29]}  gxf6 {[%clk 0:02:28]} 20. Nxb7 {[%clk 0:01:02]}  Kh8 {[%clk 0:02:26]} 21. Qc6 {[%clk 0:00:49]}  Qg5+ {[%clk 0:02:11]} 22. Kh1 {[%clk 0:00:49]}  Rac8 {[%clk 0:02:11]} 23. Qb5 {[%clk 0:00:22]}  Qd5 {[%clk 0:02:08]} 24. Rg1 {[%clk 0:00:11]}  Qxf3+ {[%clk 0:02:05]} 25. Rg2 {[%clk 0:00:12]}  Rg8 {[%clk 0:02:01]} 26. Rg1 {[%clk 0:00:10]}  Rxg2 {[%clk 0:01:59]} 27. Rxg2 {[%clk 0:00:11]}  Rg8 {[%clk 0:01:59]} 0-1


[Site "https://www.chess.com"]